fUSD/lending_fUSD_20250617
["ID","MTS","AMOUNT","RATE_DAILY","PERIOD"]
[366234350,1750146638051,-500.0,0.00013999,2]
[366234351,1750146638062,-500.0,0.00013999,2]
[366234352,1750146638074,-500.0,0.00013999,2]
[366234353,1750146638084,-339.43931899,0.00013999,2]
[366234354,1750146638094,-500.0,0.00013999,2]
[366234355,1750146638118,-500.0,0.00013999,2]
[366234356,1750146638129,-500.0,0.00013999,2]
[366234357,1750146638140,-500.0,0.00013999,2]
[366234358,1750146638151,-471.8429567,0.00013999,2]
[366234359,1750146638162,-93.04954757,0.00013999,2]
[366234360,1750146638178,-406.95045243,0.00013999,2]
[366234361,1750146638198,-500.0,0.00013999,2]
[366234362,1750146638209,-500.0,0.00013999,2]
[366234363,1750146638220,-199.81871373,0.00013999,2]
[366234364,1750146638230,-500.0,0.00013999,2]
[366234365,1750146638243,-500.0,0.00013999,2]
[366234366,1750146638255,-500.0,0.00013999,2]
[366234367,1750146638266,-500.0,0.00013999,2]
[366234368,1750146638277,-399.81767365,0.00013999,2]
[366234369,1750146638287,-273.59246122,0.00013999,2]
[366234370,1750146638298,-288.91016942,0.00013999,2]
[366234371,1750146638308,-500.0,0.00013999,2]
[366234372,1750146638319,-500.0,0.00013999,2]
[366234373,1750146638330,-321.61050381,0.00013999,2]
[366234374,1750146638340,-500.0,0.00013999,2]
[366234375,1750146638350,-500.0,0.00013999,2]
[366234376,1750146638361,-230.36239103,0.00013999,2]
[366234377,1750146638371,-500.0,0.00013999,2]
[366234378,1750146638381,-500.0,0.00013999,2]
[366234379,1750146638392,-254.75840907,0.00013999,2]
[366234380,1750146638402,-500.0,0.00013999,2]
[366234381,1750146638413,-500.0,0.00013999,2]
[366234382,1750146638423,-500.0,0.00013999,2]
[366234383,1750146638434,-500.0,0.00013999,2]
[366234384,1750146638443,-84.89317028,0.00013999,2]
[366234387,1750146638461,-415.10682972,0.00013999,2]
[366234388,1750146638471,-350.0,0.00013999,2]
[366234389,1750146638482,-500.0,0.00013999,2]
[366234390,1750146638492,-500.0,0.00013999,2]
[366234391,1750146638503,-500.0,0.00013999,2]
[366234392,1750146638513,-500.0,0.00013999,2]
[366234393,1750146638523,-371.99317028,0.00013999,2]
[366234394,1750146638585,-78.00682972,0.00013999,2]
[366234395,1750146638596,-181.56409431,0.00013999,2]
[366234396,1750146638606,-155.156,0.00013999,2]
[366234397,1750146638617,-53.67703895,0.00014,2]
[366234398,1750146638654,-424.538785,0.00014,2]
[366234399,1750146638667,-539.269297,0.00014,2]
[366234400,1750146638679,-8545.33159424,0.00014,2]
[366234401,1750146638696,-380.94205241,0.00014,2]
[366234402,1750146638708,-338.8739827,0.00014,2]
[366234403,1750146638720,-876.49937008,0.00014,2]
[366234404,1750146640058,-69346.37051166,0.00014,2]
[366234405,1750146640072,-51505.1859243,0.00014,2]
[366234406,1750146640110,-5616192.0583052,0.00014,2]
[366234407,1750146640259,-15736.90094001,0.00014,2]
[366234408,1750146640271,-1942.9070334,0.00014,2]
[366234409,1750146640299,-1179.64476278,0.00014,2]
[366234410,1750146640310,-10342.85860827,0.00014,2]
[366234411,1750146640322,-25860.01891416,0.00014,2]
[366234412,1750146640335,-453.8784,0.00014,2]
[366234413,1750146640373,-688.04722663,0.00014,2]
[366234414,1750146641402,-0.00409672,0.00014,2]
[366234415,1750146641495,-165.91520263,0.00014,2]
[366234416,1750146642936,-479.55236195,0.00014,2]
[366234417,1750146642949,-2449.72059463,0.00014,2]
[366234418,1750146642961,-942.316296,0.00014,2]
[366234419,1750146642973,-474.38004992,0.00014,2]
[366234420,1750146643056,-4501.33634472,0.00014,2]
[366234421,1750146643069,-562.6023957,0.00014,2]
[366234422,1750146643080,-3451.09141369,0.00014,2]
[366234423,1750146643092,-6916.6427971,0.00014,2]
[366234424,1750146643104,-5487.75069499,0.00014,2]
[366234425,1750146643116,-13247.60550161,0.00014,2]
[366234426,1750146643132,-1121.145,0.00014,2]
[366234427,1750146643143,-17212.79412772,0.00014,2]
[366234428,1750146643155,-723.58241774,0.00014,2]
[366234429,1750146643311,-2810.75769806,0.00014,2]
[366234430,1750146643324,-3586.7102229,0.00014,2]
[366234433,1750146644076,-194.58479737,0.00014,2]
[366234437,1750146645931,-58018.77473499,0.00014,2]
[366234438,1750146646059,-12904.58184874,0.00014,2]
[366234439,1750146646102,-1490.42905445,0.00014,2]
[366234440,1750146646144,-4205.29,0.00014,2]
[366234441,1750146647310,-240.77776402,0.00014,2]
[366234442,1750146651449,-180.25,0.00014,2]
[366234443,1750146723668,-204.0,0.0001395,4]
[366234444,1750146727263,-156.18,0.000139,2]
[366234445,1750146728942,-156.18,0.000139,2]
[366234446,1750146731633,-1511.25,0.000139,2]
[366234447,1750146735004,-185.47312122,0.000139,2]
[366234448,1750146736632,-251.83,0.000139,2]
[366234449,1750146738922,-251.83,0.000139,2]
[366234450,1750146743940,-156.93123717,0.000139,2]
[366234451,1750146743965,-138.42564161,0.000139,2]
[366234452,1750146747880,-15.81634147,0.000139,2]
[366234457,1750146834614,400.0,0.000138,5]
[366234458,1750146835694,-211.13369732,0.000139,2]
[366234459,1750146835719,-73.04996121,0.000139,2]
[366234462,1750146836932,900.0,0.000139,5]
[366234463,1750146838286,-159.99181557,0.000139,2]
[366234464,1750146840649,-199.64312122,0.000139,2]
[366234465,1750146847032,-160.11,0.000139,2]
[366234466,1750146850504,-199.49314979,0.000139,2]
[366234468,1750146854710,-258.15846816,0.000139,2]
[366234469,1750146857665,-246.34838205,0.000139,2]
[366234475,1750147093196,-196.79399417,0.0001374,2]
[366234476,1750147120137,200.0,0.000138,5]
[366234477,1750147122290,500.0,0.000139,5]
[366234478,1750147167426,-232.47713639,0.00013329,2]
[366234479,1750147174556,-155.65886944,0.00013329,2]
[366234480,1750147177420,-161.12306465,0.00013329,2]
[366234481,1750147182282,-261.23719281,0.00013329,2]
[366234482,1750147190231,-167.27,0.00013285,2]
[366234483,1750147190255,-112.16693535,0.00013329,2]
[366234484,1750147194276,-159.67280719,0.00013329,2]
[366234486,1750147280511,-183.49594308,0.00013178,2]
[366234487,1750147285997,-174.85405692,0.00013178,2]
[366234488,1750147289642,-200.47087397,0.00013178,2]
[366234490,1750147292807,150.0,0.0001549,5]
[366234493,1750147398800,-221.73219068,0.00013,2]
[366234494,1750147404171,-280.30693535,0.00013,2]
[366234497,1750147452595,-173.43976043,0.0001274,2]
[366234500,1750147531537,150.0,0.00020896,120]
[366234503,1750147652604,700.0,0.000138,5]
[366234504,1750147654898,1400.0,0.000139,5]
[366234506,1750147730812,400.0,0.000138,5]
[366234507,1750147736111,800.0,0.000139,5]
[366234510,1750147813183,202.0,0.00014804,5]
[366234511,1750147822615,150.0,0.0001549,10]
[366234512,1750147832173,-202.0,0.0001174,2]
[366234513,1750147832184,-202.0,0.00012506,2]
[366234514,1750147832194,-250.0,0.0001287,2]
[366234515,1750147832204,-25.8417361,0.0001287,2]
[366234516,1750147832216,-274.1582639,0.0001287,2]
[366234517,1750147832227,-2572.02649107,0.00013,2]
[366234518,1750147832237,-300.0,0.00013,2]
[366234519,1750147832247,-1581.35,0.00013029,2]
[366234520,1750147832258,-1200.0,0.00013114,2]
[366234521,1750147832268,-300.0,0.00013114,2]
[366234522,1750147832279,-5470.82,0.00013116,2]
[366234523,1750147832289,-17196.14,0.0001312,2]
[366234524,1750147832300,-7095.03,0.00013159,2]
[366234525,1750147832311,-184.04912603,0.00013178,2]
[366234526,1750147832321,-1005.85,0.00013238,2]
[366234527,1750147832331,-1491.4492485,0.00013238,2]
[366234528,1750147832343,-1217.6607515,0.00013238,2]
[366234529,1750147832354,-202.0,0.00013272,3]
[366234530,1750147832367,-1258.53,0.00013279,2]
[366234531,1750147832381,-1000.0,0.00013302,2]
[366234532,1750147832391,-3157.372591,0.00013307,2]
[366234544,1750147832991,-3450.90450462,0.00013307,2]
[366234545,1750147833004,-3969.05290438,0.00013307,2]
[366234546,1750147833014,-2085.48399417,0.00013329,2]
[366234547,1750147833024,-168.32,0.00013376,2]
[366234548,1750147833035,-352.1704041,0.000134,2]
[366234549,1750147833055,-716.84674981,0.000134,2]
[366234550,1750147833068,-1161.55284609,0.000134,2]
[366234551,1750147833078,-178.0,0.0001357,2]
[366234552,1750147833087,-394.72,0.00013699,2]
[366234553,1750147833097,-666.0,0.00013699,2]
[366234554,1750147833107,-30.93429548,0.00013699,2]
[366234555,1750147833118,-496.28096151,0.00013699,2]
[366234587,1750147840296,-82.78474301,0.00013699,2]
[366234589,1750147840307,-1500.0,0.00013699,2]
[366234591,1750147840318,-166.64,0.00013706,2]
[366234594,1750147840329,-1039.00943522,0.00013729,2]
[366234596,1750147840339,-868.48676193,0.00013735,2]
[366234598,1750147840348,-1536.0,0.00013838,2]
[366234600,1750147840358,-512.33071326,0.00013852,2]
[366234602,1750147840369,-354.38951187,0.000139,2]
[366234604,1750147840381,-1105.63940066,0.000139,2]
[366234606,1750147840392,-151.0,0.000139,2]
[366234608,1750147840403,-154.24198308,0.000139,2]
[366234610,1750147840413,-1567.1666164,0.000139,2]
[366234612,1750147840426,-190.02032757,0.000139,2]
[366234614,1750147840437,-666.55024429,0.000139,2]
[366234616,1750147840447,-162.75269476,0.000139,2]
[366234618,1750147840460,-957.74421602,0.00013903,2]
[366234620,1750147840471,-330.09843153,0.00013903,2]
[366234623,1750147840482,-13322.19200035,0.00013909,2]
[366234624,1750147840495,-7643.14799965,0.00013909,2]
[366234626,1750147840505,-209.90091991,0.00013913,2]
[366234628,1750147840515,-1351.0,0.00013933,2]
[366234630,1750147840526,-469.0,0.00013933,2]
[366234632,1750147840536,-513.74222926,0.00013973,2]
[366234634,1750147840547,-500.0,0.00013973,2]
[366234636,1750147840557,-500.0,0.00013973,2]
[366234638,1750147840567,-500.46052196,0.00013973,2]
[366234640,1750147840582,-500.73522401,0.00013973,2]
[366234642,1750147840593,-500.0,0.00013973,2]
[366234644,1750147840604,-500.0,0.00013973,2]
[366234646,1750147840614,-532.74010869,0.00013973,2]
[366234648,1750147840624,-500.0,0.00013973,2]
[366234650,1750147840635,-500.0,0.00013973,2]
[366234652,1750147840645,-500.0,0.00013973,2]
[366234654,1750147840654,-500.0,0.00013973,2]
[366234656,1750147840665,-501.82104504,0.00013973,2]
[366234657,1750147840675,-542.45,0.0001399,2]
[366234658,1750147840687,-151.0,0.00013992,2]
[366234659,1750147840697,-151.0,0.00013992,2]
[366234660,1750147840707,-220.85310734,0.00013999,2]
[366234662,1750147840717,-500.0,0.00013999,2]
[366234664,1750147840727,-500.0,0.00013999,2]
[366234665,1750147840738,-500.0,0.00013999,2]
[366234666,1750147840748,-291.35998604,0.00013999,2]
[366234667,1750147840758,-228.79018938,0.00013999,2]
[366234668,1750147840768,-497.47690318,0.00013999,2]
[366234669,1750147840781,-2.52309682,0.00013999,2]
[366234670,1750147840791,-500.0,0.00013999,2]
[366234671,1750147840802,-609.06099075,0.00013999,2]
[366234672,1750147840811,-347.60752329,0.00013999,2]
[366234673,1750147840822,-507.30725098,0.00013999,2]
[366234674,1750147840831,-500.0,0.00013999,2]
[366234675,1750147840841,-500.0,0.00013999,2]
[366234676,1750147840851,-500.0,0.00013999,2]
[366234677,1750147840861,-326.23344942,0.00013999,2]
[366234678,1750147840873,-173.76655058,0.00013999,2]
[366234679,1750147840883,-500.0,0.00013999,2]
[366234680,1750147840893,-500.0,0.00013999,2]
[366234681,1750147840904,-500.0,0.00013999,2]
[366234682,1750147840914,-500.0,0.00013999,2]
[366234683,1750147840924,-500.0,0.00013999,2]
[366234684,1750147840934,-500.0,0.00013999,2]
[366234685,1750147840944,-500.0,0.00013999,2]
[366234686,1750147840955,-500.0,0.00013999,2]
[366234687,1750147840965,-229.19,0.00013999,2]
[366234688,1750147840975,-62495.01681178,0.00014,2]
[366234689,1750147842786,-0.01833226,0.00014,2]
[366234693,1750147843555,-7000.01902636,0.00014,2]
[366234694,1750147843654,-1759.65308433,0.00014,2]
[366234695,1750147843697,-5248.2806831,0.00014,2]
[366234696,1750147843722,-493.74,0.00014,2]
[366234700,1750147846098,-2292.4,0.00014,2]
[366234701,1750147846111,-688.08525818,0.00014,2]
[366234702,1750147846122,-1873.14887,0.00014,2]
[366234703,1750147846134,-1116.14335463,0.00014,2]
[366234704,1750147846155,-2896.3297121,0.00014,2]
[366234705,1750147846191,-897.40698998,0.00014,2]
[366234706,1750147846335,-62942.65274851,0.00014,2]
[366234707,1750147846347,-35097.20616134,0.00014,2]
[366234708,1750147846359,-5617.20840108,0.00014,2]
[366234709,1750147846371,-779.81344171,0.00014,2]
[366234710,1750147846389,-2487.79861121,0.00014,2]
[366234711,1750147846401,-4744.79967454,0.00014,2]
[366234712,1750147846413,-766.74532714,0.00014,2]
[366234717,1750147877721,-201.0,0.0001174,2]
[366234718,1750147877744,-517.9909401,0.00013973,2]
[366234719,1750147877768,-300.0,0.00013999,2]
[366234720,1750147877791,-91981.0090599,0.00014,2]
[366234722,1750147902357,-182.42871183,0.0001174,2]
[366234723,1750147906871,-18.57128817,0.0001174,2]
[366234724,1750147906896,-138.53,0.00012068,2]
[366234725,1750147908850,-157.76919959,0.00012068,2]
[366234726,1750147910486,-203.70080041,0.00012068,2]
[366234727,1750147957991,-200.0,0.0001174,2]
[366234728,1750147958012,-150.0,0.00013767,2]
[366234729,1750147958034,-250.0,0.00013867,2]
[366234730,1750147958056,-250.0,0.00013933,2]
[366234731,1750147958079,-500.0,0.00013973,2]
[366234732,1750147958101,-151.0,0.00013992,2]
[366234733,1750147958123,-426.34269352,0.00013999,2]
[366234734,1750147958147,-203.95199023,0.00013999,2]
[366234735,1750147958171,-194.97315656,0.00013999,2]
[366234736,1750147958192,-370573.73215969,0.00014,2]
[366234739,1750148013149,-500.0,0.00013164,2]
[366234740,1750148013490,-2111.26081763,0.000139,2]
[366234741,1750148013515,-246.39316885,0.00013999,2]
[366234742,1750148013544,-500.0,0.00013999,2]
[366234743,1750148013571,-184.92515939,0.00013999,2]
[366234744,1750148013599,-699457.42085413,0.00014,2]
[366234745,1750148053289,-202.0,0.0001174,2]
[366234746,1750148055325,-7.0,0.0001174,2]
[366234750,1750148119026,-300.0,0.00013825,2]
[366234751,1750148119049,-232.0,0.00013825,2]
[366234752,1750148119072,-1200.0,0.00013825,2]
[366234753,1750148119094,-150.0,0.00013826,2]
[366234754,1750148119116,-23900.0,0.00013826,2]
[366234755,1750148119138,-250.0,0.00013912,2]
[366234756,1750148119161,-631.78,0.00013936,2]
[366234757,1750148119184,-30192.11526203,0.00014,2]
[366234758,1750148119206,-151.0,0.00014,2]
[366234759,1750148119228,-200.0,0.00014,2]
[366234760,1750148119254,-1310.0,0.00014003,2]
[366234761,1750148119275,-300.0,0.00014014,2]
[366234762,1750148119299,-202.0,0.00014038,4]
[366234763,1750148119321,-151.0,0.00014047,2]
[366234764,1750148119342,-1129.0,0.00014072,2]
[366234765,1750148119364,-318.0,0.00014101,2]
[366234766,1750148119386,-766.0,0.00014121,2]
[366234767,1750148119408,-1902.0,0.00014131,2]
[366234768,1750148119433,-600.0,0.00014157,4]
[366234769,1750148119651,-383.0,0.00014171,2]
[366234770,1750148119681,-834.0,0.00014192,2]
[366234771,1750148119704,-566.0,0.00014202,2]
[366234772,1750148119728,-2111.2608176,0.00014233,2]
[366234773,1750148119749,-319.0,0.00014241,2]
[366234774,1750148119772,-749.64965611,0.00014249,2]
[366234775,1750148119797,-321.0,0.00014262,2]
[366234776,1750148119820,-818.0,0.00014272,2]
[366234777,1750148119843,-300.0,0.000143,2]
[366234778,1750148119866,-500.0,0.00014301,2]
[366234779,1750148119889,-1746.0,0.00014332,2]
[366234780,1750148119911,-354.38951185,0.000144,2]
[366234781,1750148119936,-1095.74,0.00014441,2]
[366234782,1750148119958,-2026.88,0.00014441,2]
[366234783,1750148119981,-1095.74,0.00014445,2]
[366234784,1750148120004,-1095.74,0.00014449,2]
[366234785,1750148120027,-19564.65848352,0.00014451,2]
[366234786,1750148120050,-1095.74,0.00014453,2]
[366234787,1750148120074,-1095.74,0.00014456,2]
[366234788,1750148120097,-1095.74,0.0001446,2]
[366234789,1750148120121,-1095.74,0.00014464,2]
[366234790,1750148120145,-1095.74,0.00014468,2]
[366234791,1750148120168,-1095.74,0.00014472,2]
[366234792,1750148120191,-1095.74,0.00014475,2]
[366234793,1750148120216,-1095.74,0.00014479,2]
[366234794,1750148120238,-868.48676193,0.0001448,2]
[366234795,1750148120261,-1095.74,0.00014483,2]
[366234796,1750148120284,-1095.74,0.00014487,2]
[366234797,1750148120308,-1095.74,0.00014491,2]
[366234798,1750148120331,-252.40659811,0.00014491,2]
[366234799,1750148120354,-154.71275795,0.00014491,2]
[366234800,1750148120376,-150.0,0.00014491,2]
[366234801,1750148120398,-150.0,0.00014491,2]
[366234802,1750148120422,-150.0,0.00014491,2]
[366234803,1750148120445,-1095.74,0.00014494,2]
[366234804,1750148120468,-150.0,0.00014495,2]
[366234805,1750148120494,-150.0,0.00014495,2]
[366234806,1750148120516,-150.0,0.00014495,2]
[366234807,1750148120538,-150.0,0.00014495,2]
[366234808,1750148120561,-500.0,0.00014495,2]
[366234809,1750148120584,-150.0,0.00014495,2]
[366234810,1750148120607,-1095.74,0.00014498,2]
[366234811,1750148120630,-1095.74,0.00014502,2]
[366234812,1750148120652,-1095.74,0.00014506,2]
[366234813,1750148120676,-1095.74,0.0001451,2]
[366234814,1750148120698,-1095.74,0.00014513,2]
[366234815,1750148120721,-150.0,0.00014518,2]
[366234816,1750148120743,-150.0,0.00014518,2]
[366234817,1750148120765,-1000.0,0.00014521,2]
[366234818,1750148120786,-500.0,0.00014521,2]
[366234819,1750148120807,-150.0,0.00014522,2]
[366234820,1750148120829,-150.0,0.00014522,2]
[366234821,1750148120851,-150.0,0.00014522,2]
[366234822,1750148120872,-150.0,0.00014522,2]
[366234823,1750148120893,-500.0,0.00014522,2]
[366234824,1750148120915,-150.0,0.00014522,2]
[366234825,1750148120937,-150.0,0.00014546,2]
[366234826,1750148120959,-150.0,0.00014546,2]
[366234827,1750148120980,-150.0,0.0001455,2]
[366234828,1750148121001,-150.0,0.0001455,2]
[366234829,1750148121022,-200.0,0.0001455,2]
[366234830,1750148121044,-500.0,0.0001455,2]
[366234831,1750148121067,-2111.2608176,0.00014567,2]
[366234832,1750148121089,-150.0,0.00014573,2]
[366234833,1750148121111,-150.0,0.00014573,2]
[366234834,1750148121132,-150.0,0.00014577,2]
[366234835,1750148121153,-150.0,0.00014577,2]
[366234836,1750148121175,-611.0,0.00014577,2]
[366234837,1750148121197,-200.0,0.00014601,2]
[366234838,1750148121218,-150.0,0.00014601,2]
[366234839,1750148121239,-251.93406613,0.00014605,2]
[366234840,1750148121261,-150.0,0.00014605,2]
[366234841,1750148121282,-250.0,0.00014628,2]
[366234842,1750148121304,-250.0,0.00014632,2]
[366234843,1750148121326,-503.67971255,0.0001465,2]
[366234844,1750148121348,-366.84627311,0.0001465,2]
[366234845,1750148121369,-162.71661696,0.0001465,2]
[366234846,1750148121391,-173.64532818,0.0001465,2]
[366234847,1750148121414,-484.03017743,0.0001465,2]
[366234848,1750148121437,-157.60992705,0.0001465,2]
[366234849,1750148121460,-330.09843151,0.00014652,2]
[366234850,1750148121482,-150.0,0.0001477,2]
[366234851,1750148121510,-150.0,0.0001477,2]
[366234852,1750148121534,-503.4,0.00014808,2]
[366234853,1750148121558,-166.64,0.00014837,2]
[366234854,1750148121584,-150.0,0.00014896,2]
[366234855,1750148121607,-354.38951185,0.000149,2]
[366234856,1750148121630,-2111.2608176,0.000149,2]
[366234857,1750148121653,-151.0,0.00014905,2]
[366234858,1750148121677,-151.0,0.00014913,2]
[366234859,1750148121699,-151.0,0.00014916,2]
[366234860,1750148121722,-1000.0,0.00014965,2]
[366234861,1750148121744,-250.0,0.00015,2]
[366234862,1750148121766,-628.02,0.00015,2]
[366234863,1750148121788,-152.35,0.00015,2]
[366234864,1750148121811,-300.0,0.00015,2]
[366234865,1750148121834,-150.0,0.00015022,2]
[366234866,1750148121856,-1500.0,0.00015068,2]
[366234867,1750148121879,-461.43,0.00015096,2]
[366234868,1750148121903,-6509.69234264,0.00015122,2]
[366234869,1750148121927,-168.0,0.00015133,2]
[366234870,1750148121951,-150.0,0.00015149,2]
[366234871,1750148121974,-420.0,0.00015149,2]
[366234872,1750148121999,-464.0,0.00015155,2]
[366234873,1750148122023,-1680.0,0.00015207,2]
[366234874,1750148122046,-250.0,0.00015208,2]
[366234875,1750148122068,-600.0,0.00015208,4]
[366234876,1750148122090,-151.0,0.00015222,2]
[366234877,1750148122114,-151.0,0.00015222,2]
[366234878,1750148122136,-151.0,0.00015222,2]
[366234879,1750148122160,-700.0,0.00015222,2]
[366234880,1750148122185,-700.0,0.00015222,2]
[366234881,1750148122208,-700.0,0.00015222,2]
[366234882,1750148122230,-151.0,0.00015222,2]
[366234883,1750148122253,-700.0,0.00015222,2]
[366234884,1750148122276,-668.65185757,0.00015222,2]
[366234885,1750148122300,-700.0,0.00015222,2]
[366234886,1750148122323,-700.0,0.00015222,2]
[366234887,1750148122346,-700.0,0.00015222,2]
[366234888,1750148122369,-700.0,0.00015222,2]
[366234889,1750148122392,-500.0,0.00015222,2]
[366234890,1750148122416,-700.0,0.00015222,2]
[366234891,1750148122440,-1957.856,0.00015222,2]
[366234892,1750148122463,-500.0,0.00015222,2]
[366234893,1750148122490,-700.0,0.00015222,2]
[366234894,1750148122514,-500.0,0.00015222,2]
[366234895,1750148122539,-700.0,0.00015222,2]
[366234896,1750148122877,-583.94697035,0.00015222,2]
[366234897,1750148122903,-1000.0,0.00015222,2]
[366234898,1750148122927,-316.8697585,0.00015222,2]
[366234899,1750148122951,-1000.0,0.00015222,2]
[366234900,1750148122974,-1000.0,0.00015222,2]
[366234901,1750148122998,-1000.0,0.00015222,2]
[366234902,1750148123021,-1000.0,0.00015222,2]
[366234903,1750148123045,-1000.0,0.00015222,2]
[366234904,1750148123070,-1000.0,0.00015222,2]
[366234905,1750148123093,-700.0,0.00015222,2]
[366234906,1750148123116,-1000.0,0.00015222,2]
[366234907,1750148123142,-700.0,0.00015222,2]
[366234908,1750148123167,-1000.0,0.00015222,2]
[366234909,1750148123190,-1000.0,0.00015222,2]
[366234910,1750148123214,-700.0,0.00015222,2]
[366234911,1750148123237,-207.4,0.00015222,2]
[366234912,1750148123259,-700.0,0.00015222,2]
[366234913,1750148123283,-1000.0,0.00015222,2]
[366234914,1750148123305,-700.0,0.00015222,2]
[366234915,1750148123328,-152.46797554,0.00015222,2]
[366234916,1750148123352,-1000.0,0.00015222,2]
[366234917,1750148123376,-700.0,0.00015222,2]
[366234918,1750148123400,-1000.0,0.00015222,2]
[366234919,1750148123424,-700.0,0.00015222,2]
[366234920,1750148123448,-1000.0,0.00015222,2]
[366234921,1750148123471,-700.0,0.00015222,2]
[366234922,1750148123496,-700.0,0.00015222,2]
[366234923,1750148123520,-500.0,0.00015222,2]
[366234924,1750148123544,-700.0,0.00015222,2]
[366234925,1750148123568,-700.0,0.00015222,2]
[366234926,1750148123593,-700.0,0.00015222,2]
[366234927,1750148123617,-700.0,0.00015222,2]
[366234928,1750148123640,-700.0,0.00015222,2]
[366234929,1750148123665,-528.13368032,0.00015222,2]
[366234930,1750148123688,-151.0,0.00015222,2]
[366234931,1750148123712,-151.0,0.00015222,2]
[366234932,1750148123735,-151.0,0.00015222,2]
[366234933,1750148123758,-151.0,0.00015222,2]
[366234934,1750148123781,-151.0,0.00015222,2]
[366234935,1750148123803,-151.0,0.00015222,2]
[366234936,1750148123826,-245.09919405,0.00015222,2]
[366234937,1750148123850,-2111.2608176,0.00015233,2]
[366234938,1750148123873,-250.0,0.00015254,2]
[366234939,1750148123895,-600.0,0.00015254,4]
[366234940,1750148123918,-150.0,0.00015275,2]
[366234941,1750148123943,-2030.296672,0.00015277,2]
[366234942,1750148123968,-6509.69234256,0.0001532,2]
[366234943,1750148123992,-2105.41764886,0.00015332,2]
[366234944,1750148124014,-56040.29241277,0.0001534,2]
[366234945,1750148124039,-229.19,0.00015369,2]
[366234946,1750148124062,-2183.31810187,0.00015387,2]
[366234947,1750148124085,-668.29426654,0.00015388,2]
[366234948,1750148124107,-354.38951185,0.000154,2]
[366234949,1750148124130,-162.75269476,0.000154,2]
[366234950,1750148124152,-150.0,0.00015401,2]
[366234951,1750148124175,-330.09843151,0.00015402,2]
[366234952,1750148124199,-2264.10087164,0.00015442,2]
[366234953,1750148124222,-200.0,0.0001549,2]
[366234954,1750148124246,-2347.87260389,0.00015497,2]
[366234955,1750148124268,-992.86096883,0.00015506,2]
[366234956,1750148124291,-992.86096884,0.00015506,2]
[366234957,1750148124314,-6509.69234256,0.00015517,2]
[366234958,1750148124337,-150.0,0.00015527,2]
[366234959,1750148124361,-2434.74389024,0.00015552,2]
[366234960,1750148124386,-2111.2608176,0.00015567,2]
[366234961,1750148124410,-202.0,0.0001557,6]
[366234962,1750148124434,-150.0,0.0001559,2]
[366234963,1750148124459,-168.32,0.00015606,2]
[366234964,1750148124485,-2524.82941417,0.00015607,2]
[366234965,1750148124512,-2000.0,0.00015616,2]
[366234966,1750148124536,-198.7677966,0.00015619,2]
[366234967,1750148124560,-150.0,0.00015654,2]
[366234968,1750148124586,-2618.2481025,0.00015662,2]
[366234969,1750148124611,-168.0,0.00015695,2]
[366234970,1750148124634,-1214.0,0.000157,5]
[366234971,1750148124657,-150.0,0.00015704,2]
[366234972,1750148124681,-6509.69234256,0.00015715,2]
[366234973,1750148124706,-2715.12328229,0.00015717,2]
[366234974,1750148124727,-1148.0,0.00015726,2]
[366234975,1750148124751,-157.22271904,0.0001577,2]
[366234976,1750148124774,-151.0,0.0001577,2]